bitfinex/quotes_ETHUSD_20250523
["timestamp","ask_amount","ask_price","bid_price","bid_amount"]
[1748013328250,0.8045,2573.9,2573.1,1.4206]
[1748013328399,3.88530577,2573.8,2573.1,18.1436]
[1748013328599,3.88545673,2573.7,2573.1,18.1436]
[1748013328959,3.88591141,2573.4,2573.1,18.1436]
[1748013329450,3.88584355,2573.5,2573.1,18.1436]
[1748013329867,3.88606724,2573.3,2573.1,18.1436]
[1748013330226,0.8045,2573.9,2573.2,16.723]
[1748013330535,3.8860607,2573.3,2573.2,16.723]
[1748013330736,3.8860607,2573.3,2573.1,0.6667]
[1748013330737,3.88621172,2573.2,2573.1,0.6667]
[1748013331084,3.88621172,2573.2,2573.1,17.3897]
[1748013334532,0.7993,2573.9,2573.2,0.76]
[1748013334848,3.88590969,2573.4,2573.2,0.76]
[1748013335032,3.8860607,2573.3,2573.2,0.76]
[1748013335213,3.88621172,2573.2,2573.1,8.6667]
[1748013335426,0.7993,2573.9,2573.1,27.49697]
[1748013335618,3.88583317,2573.5,2573.1,27.49697]
[1748013335853,3.88599014,2573.4,2573.1,27.49697]
[1748013336457,0.7993,2573.9,2573.1,27.49697]
[1748013336625,3.88621172,2573.2,2573.1,25.3897]
[1748013337040,3.88601438,2573.4,2573.1,25.3897]
[1748013337243,3.88621172,2573.2,2573.1,0.6667]
[1748013337557,4.71601172,2573.2,2573.1,0.6667]
[1748013337754,5.58012043,2573.2,2573.1,0.6667]
[1748013338754,4.71601172,2573.2,2573.1,0.6667]
[1748013340158,3.88651379,2573.0,2572.9,16.704]
[1748013340735,3.88651379,2573.0,2572.7,16.77]
[1748013340736,3.88681592,2572.8,2572.7,16.77]
[1748013340944,3.88681592,2572.8,2572.7,33.475]
[1748013341425,3.88673471,2572.9,2572.7,33.475]
[1748013341627,3.88681592,2572.8,2572.7,33.475]
[1748013342132,6.21969942,2573.1,2572.7,33.475]
[1748013342133,2.3333,2573.1,2572.7,33.475]
[1748013342321,3.88681592,2572.8,2572.7,33.475]
[1748013342725,3.88681592,2572.8,2572.7,16.77]
[1748013343065,4.66416634,2572.8,2572.7,33.475]
[1748013343270,3.88681592,2572.8,2572.7,33.475]
[1748013346925,4.71421592,2572.8,2572.7,33.476]
[1748013347462,12.71421592,2572.8,2572.7,33.476]
[1748013347832,4.71421592,2572.8,2572.7,33.476]
[1748013348334,12.71421592,2572.8,2572.7,33.476]
[1748013348533,16.21221861,2572.8,2572.7,33.476]
[1748013348742,19.86021861,2572.8,2572.7,33.476]
[1748013349147,8.21221861,2572.8,2572.7,33.476]
[1748013349378,4.71421592,2572.8,2572.7,33.476]
[1748013351468,4.71421592,2572.8,2572.7,33.478]
[1748013352057,16.36321592,2572.8,2572.7,33.478]
[1748013352276,4.71421592,2572.8,2572.7,33.478]
[1748013352582,3.88681592,2572.8,2572.7,33.478]
[1748013353088,3.88654011,2573.0,2572.7,33.478]
[1748013353376,2.3333,2573.1,2572.7,33.478]
[1748013353377,3.88681592,2572.8,2572.7,33.478]
[1748013353579,3.88681592,2572.8,2572.7,45.128]
[1748013354489,8.97565396,2572.8,2572.7,33.479]
[1748013354691,9.48666963,2572.8,2572.7,33.479]
[1748013354909,14.55310443,2572.8,2572.7,33.479]
[1748013355096,7.98465072,2572.8,2572.7,33.479]
[1748013355270,10.31565072,2572.8,2572.7,33.479]
[1748013356308,3.88862964,2571.6,2571.5,0.8254]
[1748013356523,4.29774781,2571.6,2571.5,16.711]
[1748013356819,3.88862964,2571.6,2571.5,16.711]
[1748013357925,3.88845312,2571.8,2571.5,29.1908]
[1748013358108,3.88772257,2572.2,2571.5,29.1908]
[1748013358286,3.8885787,2571.7,2571.5,29.1908]
[1748013358624,3.88835202,2571.8,2571.5,29.1908]
[1748013358973,4.68221809,2572.6,2571.5,29.1908]
[1748013359174,3.88784138,2572.2,2571.7,4.69885476]
[1748013359366,3.88784138,2572.2,2571.8,0.8104]
[1748013359367,3.8877929,2572.2,2571.8,0.8104]
[1748013359568,3.88759383,2572.3,2572.0,0.8104]
[1748013359771,3.88774303,2572.2,2572.1,16.712]
[1748013359986,3.88750571,2572.4,2572.1,16.712]
[1748013360222,3.88764759,2572.3,2572.1,16.712]
[1748013360518,3.8859089,2573.5,2572.2,0.8104]
[1748013360519,3.88729653,2572.5,2572.2,0.8104]
[1748013360819,3.8874203,2572.4,2572.3,28.431]
[1748013361246,3.88734301,2572.5,2572.3,28.431]
[1748013361532,0.7951,2573.2,2572.3,16.779]
[1748013361736,3.88733973,2572.5,2572.4,28.363]
[1748013361900,3.88733973,2572.5,2572.4,28.362]
[1748013362241,3.88714059,2572.6,2572.4,28.362]
[1748013362242,2.3333,2573.1,2572.4,28.362]
[1748013362392,2.3333,2573.1,2572.5,4.66517602]
[1748013362741,3.88671078,2572.9,2572.5,0.778]
[1748013362945,3.88666251,2573.0,2572.5,0.778]
[1748013363112,6.2197207,2573.1,2572.5,0.778]
[1748013363296,3.8867434,2572.9,2572.5,0.778]
[1748013363501,2.3333,2573.1,2572.5,8.778]
[1748013363817,2.3333,2573.1,2572.9,3.88657315]
[1748013364024,2.3333,2573.1,2573.0,30.05475063]
[1748013365630,2.3333,2573.1,2573.0,1.69275063]
[1748013365938,6.21966275,2573.1,2573.0,16.691]
[1748013367846,3.88726919,2572.5,2572.4,0.803]
[1748013368011,3.88726919,2572.5,2572.4,16.691]
[1748013369842,3.88726919,2572.5,2572.1,12.47]
[1748013369843,3.88772257,2572.2,2572.1,16.691]
[1748013371919,4.69462257,2572.2,2572.1,16.691]
[1748013372319,3.88862964,2571.6,2571.5,16.776]
[1748013372643,3.88862964,2571.6,2571.5,33.467]
[1748013373724,0.8043,2572.5,2571.6,0.82]
[1748013373933,3.8877954,2572.2,2571.7,0.03887891]
[1748013374138,3.88815189,2572.0,2571.6,0.82]
[1748013374308,3.88718781,2572.6,2571.6,4.70849358]
[1748013374651,0.7798,2572.8,2571.6,4.70849358]
[1748013374652,3.8879732,2572.1,2571.6,4.70849358]
[1748013374809,3.88815959,2572.0,2571.7,11.651]
[1748013375013,3.88757143,2572.3,2571.7,11.651]
[1748013375222,3.88832724,2571.8,2571.7,11.651]
[1748013375441,3.88847843,2571.7,2571.6,8.82]
[1748013376056,3.88847843,2571.7,2571.5,33.467]
[1748013376057,3.88862964,2571.6,2571.5,16.776]
[1748013376262,3.88850227,2571.7,2571.5,33.469]
[1748013376472,0.8052,2572.4,2571.5,33.469]
[1748013376759,3.88850071,2571.7,2571.5,33.469]
[1748013376925,3.88819736,2571.9,2571.5,33.469]
[1748013377122,3.88757143,2572.3,2571.5,33.469]
[1748013377364,3.88802091,2572.1,2571.6,0.03888159]
[1748013377565,3.88752374,2572.4,2571.7,0.7821]
[1748013377766,0.8126,2572.8,2572.0,8.7821]
[1748013377933,3.88654568,2573.0,2572.4,0.7789]
[1748013378139,2.3333,2573.1,2572.5,16.778]
[1748013378368,3.88653918,2573.0,2572.6,16.693]
[1748013378666,3.88652688,2573.0,2572.7,0.7789]
[1748013378866,2.3333,2573.1,2572.7,0.7789]
[1748013379272,2.3333,2573.1,2572.7,8.7789]
[1748013379448,2.3333,2573.1,2572.9,0.8032]
[1748013379645,2.3333,2573.1,2573.0,15.53751379]
[1748013379847,2.3333,2573.1,2573.0,23.53751379]
[1748013380259,2.3333,2573.1,2572.9,0.8032]
[1748013380260,3.88651379,2573.0,2572.9,0.8032]
[1748013380464,6.21974127,2573.1,2573.0,16.691]
[1748013382549,3.88711809,2572.6,2572.5,16.778]
[1748013382752,4.3573399,2572.6,2572.5,16.778]
[1748013383331,4.3573399,2572.6,2571.7,17.23788086]
[1748013383332,3.88773439,2572.2,2571.7,17.23788086]
[1748013383553,4.66792724,2571.8,2571.7,17.23788086]
[1748013383757,4.66792724,2571.8,2571.7,33.92788086]
[1748013384158,3.88832724,2571.8,2571.7,33.465]
[1748013384391,3.8874203,2572.4,2571.7,33.465]
[1748013384688,3.88832724,2571.8,2571.7,33.465]
[1748013384992,3.8882166,2571.9,2571.7,33.465]
[1748013385185,3.88807808,2572.0,2571.7,33.465]
[1748013385389,3.88802488,2572.0,2571.7,33.465]
[1748013385592,3.88811029,2572.0,2571.7,33.465]
[1748013385987,4.64103607,2572.8,2571.8,3.88821301]
[1748013386192,3.0875,2573.1,2572.0,0.8059]
[1748013386410,3.88727913,2572.5,2572.1,11.68887028]
[1748013386713,3.8874254,2572.4,2572.2,16.692]
[1748013387098,3.88666485,2572.9,2572.2,16.692]
[1748013387099,3.88733603,2572.5,2572.2,16.692]
[1748013387413,2.3333,2573.1,2572.3,8.0]
[1748013387719,3.88721449,2572.6,2572.3,8.0]
[1748013387892,3.88679516,2572.9,2572.4,16.692]
[1748013388217,2.3333,2573.1,2572.5,0.03887073]
[1748013388512,3.88706996,2572.7,2572.5,0.8224]
[1748013388712,3.88711809,2572.6,2572.5,0.8224]
[1748013388888,4.68536485,2572.9,2572.5,16.691]
[1748013389087,3.88711809,2572.6,2572.5,16.691]
[1748013389494,5.20301809,2572.6,2572.5,16.691]
[1748013389812,3.88832724,2571.8,2571.7,16.775]
[1748013390015,3.88832724,2571.8,2571.7,33.466]
[1748013394021,2.07348228,2572.6,2571.7,33.466]
[1748013394206,3.8872767,2572.5,2572.0,3.88790585]
[1748013394412,3.88704239,2572.7,2572.2,3.88770269]
[1748013394623,3.88674145,2572.9,2572.5,8.0]
[1748013394811,2.3333,2573.1,2572.6,0.03886692]
[1748013395112,2.3333,2573.1,2572.7,16.779]
[1748013395295,2.3333,2573.1,2573.0,0.761]
[1748013395519,2.3333,2573.1,2573.0,12.68637354]
[1748013395739,2.3333,2573.1,2573.0,13.19751379]
[1748013396615,1.93207843,2573.6,2573.0,9.68117144]
[1748013396800,3.88475849,2574.2,2573.6,3.88551509]
[1748013396801,3.88472181,2574.2,2573.6,3.88551509]
[1748013397143,3.88485986,2574.1,2573.7,45.97259705]
[1748013397500,3.884775,2574.2,2573.7,45.97259705]
[1748013397697,0.7654,2574.8,2574.0,3.88496766]
[1748013398008,1.93207843,2574.9,2574.2,0.7545]
[1748013398234,3.88440024,2574.4,2574.3,16.671]
[1748013398447,3.88455114,2574.3,2574.2,0.7545]
[1748013398599,0.77689514,2574.3,2574.2,16.671]
[1748013398815,3.88455114,2574.3,2574.2,16.671]
[1748013401020,1.93207843,2574.9,2574.2,28.32]
[1748013401247,3.88434566,2574.5,2574.2,28.32]
[1748013401556,3.88452342,2574.4,2574.2,28.32]
[1748013401757,3.8842742,2574.5,2574.2,28.32]
[1748013401964,3.88446362,2574.4,2574.2,28.32]
[1748013402266,3.88471334,2574.2,2573.8,0.7545]
[1748013402418,3.88447785,2574.4,2574.0,8.0]
[1748013402760,3.88435371,2574.5,2574.0,8.0]
[1748013402761,3.88456475,2574.3,2574.0,8.0]
[1748013402973,3.88446524,2574.4,2574.0,8.0]
[1748013403275,3.88349514,2575.0,2573.8,8.7545]
[1748013403421,4.70839581,2575.2,2574.1,28.315]
[1748013403748,3.88437359,2574.5,2574.2,0.03884119]
[1748013403926,3.88334433,2575.1,2574.1,28.315]
[1748013404127,3.88515482,2573.9,2573.8,0.7545]
[1748013404360,3.88515482,2573.9,2573.8,16.665]
[1748013405031,3.88486649,2574.1,2573.8,16.665]
[1748013405233,3.8841379,2574.6,2573.8,16.665]
[1748013405556,3.88501521,2574.0,2573.9,11.645]
[1748013405755,3.88487613,2574.1,2573.7,16.779]
[1748013405927,3.88530577,2573.8,2573.7,16.779]
[1748013406126,3.8852273,2573.9,2573.7,33.444]
[1748013406564,3.88495501,2574.1,2573.7,33.444]
[1748013406565,0.8323,2574.6,2573.7,45.089]
[1748013406736,3.88500893,2574.0,2573.7,45.089]
[1748013406937,3.88530577,2573.8,2573.7,33.444]
[1748013408561,4.43530577,2573.8,2573.7,33.444]
[1748013409176,3.88530577,2573.8,2573.7,33.444]
[1748013410291,3.88530577,2573.8,2573.7,16.779]
[1748013410589,5.29167417,2573.8,2573.7,16.779]
[1748013410884,9.6933466,2573.8,2573.7,33.444]
[1748013411287,4.74167417,2573.8,2573.7,33.444]
[1748013411986,7.07267417,2573.8,2573.7,33.444]
[1748013412144,4.74167417,2573.8,2573.7,33.444]
[1748013413284,4.74167417,2573.8,2573.7,16.779]
[1748013413584,4.74167417,2573.8,2573.7,33.444]
[1748013413956,23.6693466,2573.8,2573.7,16.779]
[1748013414160,3.88711809,2572.6,2572.5,11.645]
[1748013414375,3.88711809,2572.6,2572.5,45.079]
[1748013414665,3.88711809,2572.6,2572.5,33.434]
[1748013416271,3.88711809,2572.6,2572.5,33.436]
[1748013416473,3.88772257,2572.2,2572.1,16.667]
[1748013416784,3.88847843,2571.7,2571.6,16.771]
[1748013416957,3.88847843,2571.7,2571.6,33.438]
[1748013417383,3.88726919,2572.5,2571.6,33.438]
[1748013417588,3.88832724,2571.8,2571.7,8.8148]
[1748013417792,3.88832724,2571.8,2571.7,20.4608]
[1748013418493,3.88847843,2571.7,2571.6,16.771]
[1748013418689,3.88847843,2571.7,2571.6,33.44]
[1748013419594,3.88847843,2571.7,2571.6,16.771]
[1748013419793,3.88847843,2571.7,2571.6,33.44]
[1748013421678,3.88847843,2571.7,2571.6,34.2087]
[1748013421889,0.8286,2572.5,2571.6,34.2087]
[1748013422392,3.88847843,2571.7,2571.6,42.2087]
[1748013422594,3.88847843,2571.7,2571.6,45.8597]
[1748013422759,3.88847843,2571.7,2571.6,45.091]
[1748013422953,4.66615997,2571.7,2571.6,16.771]
[1748013423173,4.7051443,2571.7,2571.6,33.442]
[1748013423503,4.66615997,2571.7,2571.6,33.442]
[1748013423658,3.88847843,2571.7,2571.6,33.442]
[1748013424880,3.88844524,2571.8,2571.7,0.764]
[1748013425111,0.7758,2572.7,2571.7,0.764]
[1748013425294,3.88578639,2573.5,2571.9,0.7914]
[1748013425619,3.8860607,2573.3,2572.6,0.7914]
[1748013425824,3.88691761,2572.8,2572.7,45.102]
[1748013425965,3.88691761,2572.8,2572.7,16.777]
[1748013426165,3.88691761,2572.8,2572.7,33.451]
[1748013426784,4.66651761,2572.8,2572.7,33.434]
[1748013427018,5.52183748,2572.8,2572.7,33.434]
[1748013427217,3.88691761,2572.8,2572.7,33.434]
[1748013432295,7.67691761,2572.8,2572.7,33.434]
[1748013432498,9.01801761,2572.8,2572.7,16.777]
[1748013432729,8.46801761,2572.8,2572.7,16.777]
[1748013433219,7.67691761,2572.8,2572.7,16.777]
[1748013434003,3.79,2573.2,2572.7,16.777]
[1748013434208,3.88681592,2572.8,2572.7,28.427]
[1748013434593,3.88676286,2572.9,2572.7,28.427]
[1748013434808,3.88681592,2572.8,2572.7,16.777]
[1748013435122,3.88681592,2572.8,2572.7,45.083]
[1748013435881,3.79,2573.2,2572.7,45.083]
[1748013436081,3.88624159,2573.2,2572.7,45.083]
[1748013436306,3.88661269,2573.0,2572.7,45.083]
[1748013436523,0.03898433,2573.3,2572.7,16.777]
[1748013436833,3.88681592,2572.8,2572.7,16.777]
[1748013437214,3.88681592,2572.8,2572.7,33.432]
[1748013439546,3.88681592,2572.8,2572.7,33.431]
[1748013439848,4.65311592,2572.8,2572.7,33.431]
[1748013440602,8.44311592,2572.8,2572.7,33.431]
[1748013441446,7.67681592,2572.8,2572.7,33.431]
[1748013442308,8.39100251,2572.8,2572.7,33.431]
[1748013442512,24.47727494,2572.8,2572.7,16.777]
[1748013442745,6.76796699,2572.7,2572.6,16.654]
[1748013442931,10.55796699,2572.7,2572.6,16.654]
[1748013443327,8.22696699,2572.7,2572.6,16.654]
[1748013443617,13.70779315,2572.7,2572.6,16.654]
[1748013443846,13.15779315,2572.7,2572.6,16.654]
[1748013444259,10.82679315,2572.7,2572.6,16.654]
[1748013444923,19.32596699,2572.7,2572.6,16.654]
[1748013445118,7.67696699,2572.7,2572.6,16.654]
[1748013445474,3.88802488,2572.0,2571.9,28.424]
[1748013445759,3.88802488,2572.0,2571.9,33.431]
[1748013447837,3.8879548,2572.1,2571.9,33.431]
[1748013448048,3.88802488,2572.0,2571.9,33.431]
[1748013450661,5.91125285,2572.0,2571.9,16.775]
[1748013450866,5.91125285,2572.0,2571.1,0.05]
[1748013450867,3.88923459,2571.2,2571.1,0.05]
[1748013451027,3.88923459,2571.2,2571.1,16.707]
[1748013452152,3.88923459,2571.2,2571.1,0.05]
[1748013452348,3.88923459,2571.2,2571.1,16.709]
[1748013453927,3.88862964,2571.6,2571.1,16.709]
[1748013454260,3.88923459,2571.2,2571.1,18.3799]
[1748013454567,7.67769189,2572.3,2571.2,3.88915707]
[1748013454725,3.88796476,2572.1,2571.3,20.429]
[1748013455062,3.88878086,2571.5,2571.4,0.87359705]
[1748013455494,3.79,2572.3,2571.5,0.777]
[1748013455679,3.88862964,2571.6,2571.5,0.777]
[1748013458086,3.88862964,2571.6,2571.4,0.87359705]
[1748013458264,3.88862964,2571.6,2571.1,0.05]
[1748013458265,3.88908334,2571.3,2571.2,0.8315]
[1748013458665,3.88908334,2571.3,2571.2,17.4755]
[1748013458975,3.88908334,2571.3,2571.2,16.644]
[1748013462153,14.15761221,2572.3,2571.2,29.9674]
[1748013462374,14.15761221,2572.3,2571.4,0.7809]
[1748013462375,3.88830889,2571.9,2571.4,0.7809]
[1748013462573,3.88832424,2571.9,2571.5,0.03888008]
[1748013462760,3.88832424,2571.9,2571.6,11.654]
[1748013462969,3.88832724,2571.8,2571.7,16.645]
[1748013463889,3.88862964,2571.6,2571.5,0.87509705]
[1748013464220,3.88854181,2571.7,2571.5,29.17309705]
[1748013464781,3.88854181,2571.7,2571.6,28.297]
[1748013465103,3.79,2572.2,2571.6,1.6694]
[1748013465419,3.79,2572.2,2571.6,28.297]
[1748013465420,3.88841544,2571.8,2571.6,28.297]
[1748013465576,3.88847843,2571.7,2571.6,8.0]
[1748013465781,3.88847843,2571.7,2571.6,36.297]
[1748013466112,3.88847843,2571.7,2571.6,28.297]
[1748013467292,3.88847843,2571.7,2571.6,16.644]
[1748013468619,3.88827124,2571.9,2571.6,16.644]
[1748013468908,3.79,2573.0,2572.2,0.8186]
[1748013469082,3.79,2573.3,2572.7,0.8186]
[1748013469285,3.79,2573.3,2572.8,45.11486612]
[1748013469468,3.88620278,2573.3,2572.9,8.03886288]
[1748013469675,3.88605585,2573.4,2573.0,0.03885848]
[1748013469872,3.88608735,2573.3,2573.1,0.8261]
[1748013470411,3.88573607,2573.6,2573.1,0.8261]
[1748013470614,1.93207843,2573.8,2573.2,0.55]
[1748013470910,1.93207843,2573.8,2573.4,8.0]
[1748013471094,3.88546429,2573.7,2573.4,8.0]
[1748013471307,1.93207843,2573.8,2573.3,0.7741]
[1748013471475,3.88545673,2573.7,2573.4,36.295]
[1748013471678,3.8856077,2573.6,2573.5,28.295]
[1748013472392,3.8856077,2573.6,2573.5,36.295]
[1748013472778,3.8856077,2573.6,2573.5,30.83949705]
[1748013473025,3.8856077,2573.6,2573.5,28.295]
[1748013473527,3.88590969,2573.4,2573.3,0.7741]
[1748013473728,3.88590969,2573.4,2573.3,17.4131]
[1748013474937,3.79,2574.1,2573.3,17.4131]
[1748013475074,3.8850274,2574.0,2573.5,8.0]
[1748013475385,3.88508346,2574.0,2573.5,8.0]
[1748013475590,3.88436508,2574.5,2573.6,8.0]
[1748013475779,3.88504275,2574.0,2573.7,11.648]
[1748013475983,3.88515482,2573.9,2573.8,33.409]
[1748013476240,3.88515482,2573.9,2573.8,16.773]
[1748013476394,3.88515482,2573.9,2573.8,33.409]
[1748013477220,3.88515482,2573.9,2573.8,16.773]
[1748013477378,3.88515482,2573.9,2573.8,33.409]
[1748013480194,3.8850747,2574.0,2573.8,33.409]
[1748013480623,3.88515482,2573.9,2573.8,33.409]
[1748013480827,3.88441906,2574.4,2573.9,8.0]
[1748013481026,0.8318,2575.4,2574.2,4.64291221]
[1748013481231,0.8318,2575.4,2574.6,8.0]
[1748013481396,0.8318,2575.7,2574.6,4.64233685]
[1748013481732,3.88312251,2575.3,2574.8,8.0]
[1748013481938,3.88291643,2575.4,2575.0,8.0]
[1748013482134,0.8318,2576.0,2575.0,8.0]
[1748013482514,3.88249647,2575.7,2575.1,0.7725]
[1748013482692,5.81394536,2576.1,2575.1,0.7725]
[1748013482893,3.88299903,2575.4,2575.2,0.87725]
[1748013483118,3.88304275,2575.3,2575.2,20.52325]
[1748013483325,3.88304275,2575.3,2575.2,37.15625]
[1748013483514,3.88304275,2575.3,2575.2,29.15625]
[1748013483719,1.93207843,2576.1,2575.2,29.15625]
[1748013483917,3.88271018,2575.6,2575.3,1.20301336]
[1748013484228,1.93207843,2576.1,2575.3,1.20301336]
[1748013484437,0.8071,2576.4,2575.3,9.20301336]
[1748013484735,3.8823831,2575.8,2575.3,9.20301336]
[1748013485044,2.73667843,2576.7,2575.5,0.8046]
[1748013485191,2.73667843,2576.7,2575.6,4.43251413]
[1748013485192,3.88108359,2576.6,2575.6,4.43251413]
[1748013485394,3.88108359,2576.6,2575.8,8.0]
[1748013485395,3.88183773,2576.1,2575.8,8.0]
[1748013485604,3.88198777,2576.0,2575.9,36.408]
[1748013486107,3.88198777,2576.0,2575.9,16.765]
[1748013486313,3.88198777,2576.0,2575.9,33.394]
[1748013487428,3.88184652,2576.1,2575.9,33.394]
[1748013487627,3.88182841,2576.2,2576.0,1.34148369]
[1748013487825,3.88182841,2576.2,2576.1,12.4268]
[1748013488540,3.88182841,2576.2,2576.1,17.3918]
[1748013488753,3.88183688,2576.1,2575.9,16.765]
[1748013488916,3.88183688,2576.1,2576.0,16.605]
[1748013489807,3.88183688,2576.1,2575.9,16.765]
[1748013489808,3.88198757,2576.0,2575.9,16.765]
[1748013490006,3.88198757,2576.0,2575.9,33.37]
[1748013490640,3.88198757,2576.0,2575.9,16.765]
[1748013490842,3.88198757,2576.0,2575.9,33.368]
[1748013491133,3.88093297,2576.7,2576.0,0.7549]
[1748013491332,3.88171648,2576.2,2576.0,0.7549]
[1748013491533,3.88183688,2576.1,2576.0,0.7549]
[1748013491936,4.65939028,2576.8,2576.0,0.7549]
[1748013492137,0.7785,2577.1,2576.1,28.241]
[1748013492338,3.88101842,2576.7,2576.1,28.241]
[1748013492518,3.88048117,2577.0,2576.1,28.241]
[1748013492715,3.88093297,2576.7,2576.2,28.241]
[1748013492957,3.88144588,2576.4,2576.2,28.241]
[1748013493161,4.65888097,2577.1,2576.2,28.241]
[1748013493162,3.88121628,2576.6,2576.2,28.241]
[1748013493457,3.88098764,2576.7,2576.2,28.241]
[1748013493665,3.88127948,2576.5,2576.3,8.0]
[1748013493861,3.88051976,2577.0,2576.3,8.0]
[1748013494025,0.7608,2577.3,2576.3,8.0]
[1748013494026,3.88018004,2577.2,2576.3,8.0]
[1748013494227,3.88138487,2576.4,2576.3,8.0]
[1748013494627,3.88163974,2576.3,2576.0,8.7549]
[1748013494937,3.88163974,2576.3,2576.2,8.0]
[1748013495123,3.8816862,2576.2,2576.1,36.236]
[1748013495861,3.88143936,2576.4,2576.1,36.236]
[1748013496061,3.88061425,2577.0,2576.2,8.0]
[1748013496263,4.64084601,2577.3,2576.2,8.0]
[1748013496264,0.7608,2577.3,2576.3,0.7862]
[1748013496426,3.88097778,2576.7,2576.3,0.7862]
[1748013496626,3.88136106,2576.5,2576.3,0.7862]
[1748013496941,3.88138487,2576.4,2576.3,0.7862]
[1748013497842,3.88138487,2576.4,2576.3,37.0182]
[1748013498041,3.88138487,2576.4,2576.3,8.7862]
[1748013498467,3.88138487,2576.4,2576.3,29.0182]
[1748013498840,3.88054122,2577.0,2576.3,29.0182]
[1748013499047,3.88103954,2576.7,2576.4,8.0]
[1748013499365,3.88123423,2576.5,2576.4,8.0]
[1748013501084,3.88138487,2576.4,2576.3,0.7862]
[1748013501271,3.88138487,2576.4,2576.3,29.0152]
[1748013501771,3.88138487,2576.4,2576.3,16.596]
[1748013505272,3.88138487,2576.4,2576.3,16.595]
[1748013506234,3.88059653,2577.0,2576.4,0.7869]
[1748013506440,3.88076079,2576.9,2576.5,9.73819]
[1748013506639,3.88080162,2576.8,2576.6,8.7771]
[1748013506860,3.88080162,2576.8,2576.7,11.632]
[1748013508262,3.88076079,2576.9,2576.7,11.632]
[1748013508463,3.8805453,2577.0,2576.8,17.40030705]
[1748013508673,3.8805453,2577.0,2576.9,16.749]
[1748013508977,3.88041564,2577.1,2576.9,16.749]
[1748013509281,3.88048117,2577.0,2576.9,16.749]
[1748013509662,0.754,2578.0,2577.0,8.7957]
[1748013509863,3.88018004,2577.2,2577.1,1.73819]
[1748013510039,3.87912642,2577.9,2577.1,1.73819]
[1748013510239,3.87945199,2577.7,2577.1,1.73819]
[1748013510444,3.88018004,2577.2,2577.1,1.73819]
[1748013510644,3.87990946,2577.4,2577.1,1.73819]
[1748013510979,4.63312417,2578.0,2577.2,1.17532367]
[1748013510980,3.87944486,2577.7,2577.2,1.17532367]
[1748013511140,0.7978,2578.7,2577.3,37.0315]
[1748013511345,3.87907817,2578.0,2577.5,0.8085]
[1748013511567,3.87892402,2578.1,2577.6,0.55]
[1748013511768,0.7978,2578.7,2577.6,0.55]
[1748013511951,0.7978,2578.7,2577.7,0.52381982]
[1748013511952,3.87883399,2578.1,2577.7,0.52381982]
[1748013512153,3.8792769,2577.8,2577.7,0.52381982]
[1748013512568,3.8792769,2577.8,2577.7,28.221]
[1748013513041,3.8792769,2577.8,2577.7,28.59001662]
[1748013513678,3.8792769,2577.8,2577.7,0.36901662]
[1748013513856,3.8792769,2577.8,2577.7,16.95901662]
[1748013514579,3.8792769,2577.8,2577.7,16.59]
[1748013515173,3.88002948,2577.3,2577.2,0.7748]
[1748013515346,3.88048117,2577.0,2576.9,18.03928086]
[1748013515548,3.88048117,2577.0,2576.9,56.12092639]
[1748013515956,3.88048117,2577.0,2576.9,48.12092639]
[1748013516154,3.88048117,2577.0,2576.9,45.42788086]
[1748013516373,3.88048117,2577.0,2576.9,45.33381023]
[1748013516570,3.88048117,2577.0,2576.9,33.70581023]
[1748013517893,3.88048117,2577.0,2576.9,33.337]
[1748013520380,4.64158117,2577.0,2576.9,33.313]
[1748013520579,5.41766501,2577.0,2576.9,33.313]
[1748013521551,4.64158117,2577.0,2576.9,33.313]
[1748013522550,3.88048117,2577.0,2576.9,33.313]
[1748013523379,3.88048117,2577.0,2576.9,16.749]
[1748013523561,3.88048117,2577.0,2576.9,44.942]
[1748013525193,3.88048117,2577.0,2576.9,16.749]
[1748013525397,3.88048117,2577.0,2576.9,44.941]
[1748013525597,3.88048117,2577.0,2576.9,47.48549705]
[1748013525794,3.88048117,2577.0,2576.9,44.941]
[1748013525975,3.88048117,2577.0,2576.9,45.7195]
[1748013527578,3.87856096,2578.3,2576.9,53.7195]
[1748013527772,3.87984312,2577.5,2577.0,0.82809099]
[1748013527976,3.88001215,2577.4,2577.0,0.7893]
[1748013528185,4.64555186,2578.3,2577.0,0.7893]
[1748013528186,3.8803306,2577.1,2577.0,8.7893]
[1748013528567,3.88026598,2577.2,2577.0,8.7893]
[1748013528778,2.331,2579.1,2577.1,0.55]
[1748013528984,3.8790922,2578.0,2577.2,0.8077]
[1748013529272,3.87929181,2577.8,2577.5,0.55]
[1748013529460,3.87929181,2577.8,2577.7,8.0]
[1748013530689,0.833,2578.6,2577.7,8.0]
[1748013530891,3.8777726,2578.8,2577.8,0.7671]
[1748013531098,3.87865316,2578.3,2578.1,0.7671]
[1748013531299,3.87861203,2578.3,2578.2,28.191]
[1748013531692,3.87882549,2578.1,2578.0,8.0]
[1748013531902,3.87882549,2578.1,2578.0,36.191]
[1748013532586,3.87897595,2578.0,2577.9,16.744]
[1748013532786,3.87897595,2578.0,2577.9,44.931]
[1748013536747,3.81397595,2578.0,2577.9,44.931]
[1748013537792,3.81397595,2578.0,2577.9,33.304]
[1748013538015,3.87942739,2577.7,2577.5,0.781]
[1748013538215,3.87942739,2577.7,2577.6,33.301]
[1748013538389,3.91841172,2577.7,2577.6,33.301]
[1748013538584,3.87942739,2577.7,2577.6,33.301]
[1748013539984,3.87942739,2577.7,2577.6,16.741]
[1748013540188,5.11829066,2577.7,2577.6,33.3]
[1748013540385,3.87942739,2577.7,2577.6,33.3]
[1748013541824,4.65522739,2577.7,2577.6,33.302]
[1748013542130,12.65522739,2577.7,2577.4,16.561]